Workbook

Sheet Notes
B2: Post-COVID clinic Friends and Family Test (FFT) data - August 2023 | H2: Show data for:

Sheet Summary
B3: FFT | C3: Number of organisations submitting | D3: Total responses to date | E3: Responses | G3: Percentage Positive | I3: Percentage Negative
C4: 2023-08-01 | D4: 2023-08-01 | E4: 2023-08-01 | F4: 2023-07-27 | G4: 2023-08-01 | H4: 2023-07-27 | I4: 2023-08-01 | J4: 2023-07-27
B5: Post Covid Q1 | C5: 71 | D5: 22445 | E5: 1245 | F5: 1431 | G5: 0.9694779116 | H5: 0.965059399 | I5: 0.01124497992 | J5: 0.01397624039
B6: Post Covid Q2 | C6: 71 | D6: 11835 | E6: 478 | F6: 488 | G6: 0.9476987448 | H6: 0.9569672131 | I6: 0.05230125523 | J6: 0.04303278689
B7: Post Covid Q3 | C7: 71 | D7: 12302 | E7: 510 | F7: 500 | G7: 0.9960784314 | H7: 0.992 | I7: 0.003921568627 | J7: 0.008

Sheet ICB
A3: ICB Code | B3: ICB Name | C3: Question 1 | F3: Question 1 | L3: Question 2 | P3: Question 2 | S3: Question 3 | V3: Question 3
C4: Total Responses | D4: Percentage Positive | E4: Percentage Negative | F4: Breakdown of Responses | L4: Total Responses | M4: Total Eligible | N4: Percentage Positive | O4: Percentage Negative | P4: Breakdown of Responses | S4: Total Responses | T4: Percentage Positive | U4: Percentage Negative | V4: Breakdown of Responses
F5: Very Good | G5: Good | H5: Neither Good nor Poor | I5: Poor | J5: Very Poor | K5: Don't Know | P5: Yes definitely | Q5: Yes to some extent | R5: No | V5: Yes definitely | W5: Yes to some extent | X5: No
B6: England | C6: 1245 | D6: 0.9694779116 | E6: 0.01124497992 | F6: 1087 | G6: 120 | H6: 17 | I6: 7 | J6: 7 | K6: 7 | L6: 478 | M6: 2238 | N6: 0.9476987448 | O6: 0.05230125523 | P6: 414 | Q6: 39 | R6: 25 | S6: 510 | T6: 0.9960784314 | U6: 0.003921568627 | V6: 493 | W6: 15 | X6: 2
B7: Selection (excluding suppressed data) | C7: =SUBTOTAL(9,C8:C61) -> 1245 | D7: =IFERROR((F7+G7)/SUM(F7:K7), "-") -> 0.9700162075 | E7: =IFERROR((I7+J7)/SUM(F7:K7), "-") -> 0.01053484603 | F7: =SUBTOTAL(9,F8:F61) -> 1078 | G7: 119 | H7: 17 | I7: 7 | J7: 6 | K7: 7 | L7: 478 | M7: 2238 | N7: =IFERROR((P7+Q7)/SUM(P7:R7), "-") -> 0.9469214437 | O7: =IFERROR(R7/SUM(P7:R7), "-") -> 0.05307855626 | P7: 408 | Q7: 38 | R7: 25 | S7: =SUBTOTAL(9,S8:S61) -> 510 | T7: =IFERROR((V7+W7)/SUM(V7:X7), "-") -> 0.996031746 | U7: =IFERROR(X7/SUM(V7:X7), "-") -> 0.003968253968 | V7: =SUBTOTAL(9,V8:V61) -> 489 | W7: 13 | X7: 2
A8: QE1 | B8: LANCASHIRE AND SOUTH CUMBRIA ICB | C8: 1 | D8: * | E8: * | F8: * | G8: * | H8: * | I8: * | J8: * | K8: * | L8: 1 | M8: 0 | N8: * | O8: * | P8: * | Q8: * | R8: * | S8: 1 | T8: * | U8: * | V8: * | W8: * | X8: *
A9: QF7 | B9: SOUTH YORKSHIRE ICB | C9: 6 | D9: 1 | E9: 0 | F9: 3 | G9: 3 | H9: 0 | I9: 0 | J9: 0 | K9: 0 | L9: 5 | M9: 0 | N9: 1 | O9: 0 | P9: 5 | Q9: 0 | R9: 0 | S9: 5 | T9: 1 | U9: 0 | V9: 5 | W9: 0 | X9: 0
A10: QGH | B10: HEREFORDSHIRE AND WORCESTERSHIRE ICB | C10: 0 | D10: NA | E10: NA | F10: 0 | G10: 0 | H10: 0 | I10: 0 | J10: 0 | K10: 0 | L10: 0 | M10: 0 | N10: NA | O10: NA | P10: 0 | Q10: 0 | R10: 0 | S10: 0 | T10: NA | U10: NA | V10: 0 | W10: 0 | X10: 0
A11: QH8 | B11: MID AND SOUTH ESSEX ICB | C11: 0 | D11: NA | E11: NA | F11: 0 | G11: 0 | H11: 0 | I11: 0 | J11: 0 | K11: 0 | L11: 0 | M11: 0 | N11: NA | O11: NA | P11: 0 | Q11: 0 | R11: 0 | S11: 0 | T11: NA | U11: NA | V11: 0 | W11: 0 | X11: 0
A12: QHG | B12: BEDFORDSHIRE, LUTON AND MILTON KEYNES ICB | C12: 26 | D12: 0.9615384615 | E12: 0 | F12: 22 | G12: 3 | H12: 1 | I12: 0 | J12: 0 | K12: 0 | L12: 26 | M12: 80 | N12: 0.9615384615 | O12: 0.03846153846 | P12: 23 | Q12: 2 | R12: 1 | S12: 26 | T12: 1 | U12: 0 | V12: 25 | W12: 1 | X12: 0
A13: QHL | B13: BIRMINGHAM AND SOLIHULL ICB | C13: 21 | D13: 1 | E13: 0 | F13: 18 | G13: 3 | H13: 0 | I13: 0 | J13: 0 | K13: 0 | L13: 21 | M13: 0 | N13: 1 | O13: 0 | P13: 21 | Q13: 0 | R13: 0 | S13: 21 | T13: 1 | U13: 0 | V13: 21 | W13: 0 | X13: 0
A14: QHM | B14: NORTH EAST AND NORTH CUMBRIA ICB | C14: 19 | D14: 0.9473684211 | E14: 0 | F14: 16 | G14: 2 | H14: 0 | I14: 0 | J14: 0 | K14: 1 | L14: 9 | M14: 46 | N14: 1 | O14: 0 | P14: 8 | Q14: 1 | R14: 0 | S14: 9 | T14: 1 | U14: 0 | V14: 9 | W14: 0 | X14: 0
A15: QJ2 | B15: DERBY AND DERBYSHIRE ICB | C15: 17 | D15: 0.8823529412 | E15: 0 | F15: 11 | G15: 4 | H15: 1 | I15: 0 | J15: 0 | K15: 1 | L15: 17 | M15: 0 | N15: 1 | O15: 0 | P15: 12 | Q15: 5 | R15: 0 | S15: 17 | T15: 1 | U15: 0 | V15: 12 | W15: 5 | X15: 0
A16: QJG | B16: SUFFOLK AND NORTH EAST ESSEX ICB | C16: 759 | D16: 0.9828722003 | E16: 0.00790513834 | F16: 690 | G16: 56 | H16: 4 | I16: 2 | J16: 4 | K16: 3 | L16: 119 | M16: 119 | N16: 0.8403361345 | O16: 0.1596638655 | P16: 100 | Q16: 0 | R16: 19 | S16: 150 | T16: 0.9933333333 | U16: 0.006666666667 | V16: 149 | W16: 0 | X16: 1
A17: QJK | B17: DEVON ICB | C17: 6 | D17: 1 | E17: 0 | F17: 6 | G17: 0 | H17: 0 | I17: 0 | J17: 0 | K17: 0 | L17: 6 | M17: 6 | N17: 1 | O17: 0 | P17: 6 | Q17: 0 | R17: 0 | S17: 6 | T17: 1 | U17: 0 | V17: 6 | W17: 0 | X17: 0
A18: QJM | B18: LINCOLNSHIRE ICB | C18: 13 | D18: 1 | E18: 0 | F18: 12 | G18: 1 | H18: 0 | I18: 0 | J18: 0 | K18: 0 | L18: 13 | M18: 309 | N18: 1 | O18: 0 | P18: 12 | Q18: 1 | R18: 0 | S18: 13 | T18: 1 | U18: 0 | V18: 13 | W18: 0 | X18: 0
A19: QK1 | B19: LEICESTER, LEICESTERSHIRE AND RUTLAND ICB | C19: 5 | D19: 1 | E19: 0 | F19: 5 | G19: 0 | H19: 0 | I19: 0 | J19: 0 | K19: 0 | L19: 0 | M19: 49 | N19: NA | O19: NA | P19: 0 | Q19: 0 | R19: 0 | S19: 0 | T19: NA | U19: NA | V19: 0 | W19: 0 | X19: 0
A20: QKK | B20: SOUTH EAST LONDON ICB | C20: 5 | D20: 0.8 | E20: 0.2 | F20: * | G20: * | H20: * | I20: * | J20: * | K20: * | L20: 5 | M20: 132 | N20: 1 | O20: 0 | P20: * | Q20: * | R20: * | S20: 5 | T20: 1 | U20: 0 | V20: * | W20: * | X20: *
A21: QKS | B21: KENT AND MEDWAY ICB | C21: 0 | D21: NA | E21: NA | F21: 0 | G21: 0 | H21: 0 | I21: 0 | J21: 0 | K21: 0 | L21: 0 | M21: 0 | N21: NA | O21: NA | P21: 0 | Q21: 0 | R21: 0 | S21: 0 | T21: NA | U21: NA | V21: 0 | W21: 0 | X21: 0
A22: QM7 | B22: HERTFORDSHIRE AND WEST ESSEX ICB | C22: 7 | D22: 0.8571428571 | E22: 0.1428571429 | F22: 5 | G22: 1 | H22: 0 | I22: 0 | J22: 1 | K22: 0 | L22: 7 | M22: 0 | N22: 0.8571428571 | O22: 0.1428571429 | P22: 5 | Q22: 1 | R22: 1 | S22: 7 | T22: 1 | U22: 0 | V22: 6 | W22: 1 | X22: 0
A23: QMF | B23: NORTH EAST LONDON ICB | C23: 22 | D23: 0.9090909091 | E23: 0.04545454545 | F23: 16 | G23: 4 | H23: 1 | I23: 1 | J23: 0 | K23: 0 | L23: 17 | M23: 175 | N23: 1 | O23: 0 | P23: 15 | Q23: 2 | R23: 0 | S23: 17 | T23: 0.9411764706 | U23: 0.05882352941 | V23: 16 | W23: 0 | X23: 1
A24: QMJ | B24: NORTH CENTRAL LONDON ICB | C24: 0 | D24: NA | E24: NA | F24: 0 | G24: 0 | H24: 0 | I24: 0 | J24: 0 | K24: 0 | L24: 0 | M24: 0 | N24: NA | O24: NA | P24: 0 | Q24: 0 | R24: 0 | S24: 0 | T24: NA | U24: NA | V24: 0 | W24: 0 | X24: 0
A25: QMM | B25: NORFOLK AND WAVENEY ICB | C25: 37 | D25: 0.972972973 | E25: 0 | F25: 32 | G25: 4 | H25: 1 | I25: 0 | J25: 0 | K25: 0 | L25: 2 | M25: 0 | N25: * | O25: * | P25: 2 | Q25: 0 | R25: 0 | S25: 2 | T25: * | U25: * | V25: 2 | W25: 0 | X25: 0
A26: QNC | B26: STAFFORDSHIRE AND STOKE-ON-TRENT ICB | C26: 7 | D26: 0.8571428571 | E26: 0 | F26: 6 | G26: 0 | H26: 1 | I26: 0 | J26: 0 | K26: 0 | L26: 6 | M26: 0 | N26: 1 | O26: 0 | P26: 5 | Q26: 1 | R26: 0 | S26: 6 | T26: 1 | U26: 0 | V26: 6 | W26: 0 | X26: 0
A27: QNQ | B27: FRIMLEY ICB | C27: 0 | D27: NA | E27: NA | F27: 0 | G27: 0 | H27: 0 | I27: 0 | J27: 0 | K27: 0 | L27: 0 | M27: 0 | N27: NA | O27: NA | P27: 0 | Q27: 0 | R27: 0 | S27: 0 | T27: NA | U27: NA | V27: 0 | W27: 0 | X27: 0
A28: QNX | B28: SUSSEX ICB | C28: 5 | D28: 0.4 | E28: 0 | F28: 2 | G28: 0 | H28: 2 | I28: 0 | J28: 0 | K28: 1 | L28: 4 | M28: 4 | N28: * | O28: * | P28: 2 | Q28: 2 | R28: 0 | S28: 4 | T28: * | U28: * | V28: 4 | W28: 0 | X28: 0
A29: QOC | B29: SHROPSHIRE, TELFORD AND WREKIN ICB | C29: 0 | D29: NA | E29: NA | F29: 0 | G29: 0 | H29: 0 | I29: 0 | J29: 0 | K29: 0 | L29: 0 | M29: 0 | N29: NA | O29: NA | P29: 0 | Q29: 0 | R29: 0 | S29: 0 | T29: NA | U29: NA | V29: 0 | W29: 0 | X29: 0
A30: QOP | B30: GREATER MANCHESTER ICB | C30: 0 | D30: NA | E30: NA | F30: 0 | G30: 0 | H30: 0 | I30: 0 | J30: 0 | K30: 0 | L30: 0 | M30: 48 | N30: NA | O30: NA | P30: 0 | Q30: 0 | R30: 0 | S30: 0 | T30: NA | U30: NA | V30: 0 | W30: 0 | X30: 0
A31: QOQ | B31: HUMBER AND NORTH YORKSHIRE ICB | C31: 8 | D31: 1 | E31: 0 | F31: 6 | G31: 2 | H31: 0 | I31: 0 | J31: 0 | K31: 0 | L31: 8 | M31: 6 | N31: 0.875 | O31: 0.125 | P31: 6 | Q31: 1 | R31: 1 | S31: 7 | T31: 1 | U31: 0 | V31: 7 | W31: 0 | X31: 0
A32: QOX | B32: BATH AND NORTH EAST SOMERSET, SWINDON AND WILTSHIRE ICB | C32: 11 | D32: 1 | E32: 0 | F32: 9 | G32: 2 | H32: 0 | I32: 0 | J32: 0 | K32: 0 | L32: 11 | M32: 171 | N32: 1 | O32: 0 | P32: 8 | Q32: 3 | R32: 0 | S32: 11 | T32: 1 | U32: 0 | V32: 11 | W32: 0 | X32: 0
A33: QPM | B33: NORTHAMPTONSHIRE ICB | C33: 0 | D33: NA | E33: NA | F33: 0 | G33: 0 | H33: 0 | I33: 0 | J33: 0 | K33: 0 | L33: 0 | M33: 0 | N33: NA | O33: NA | P33: 0 | Q33: 0 | R33: 0 | S33: 0 | T33: NA | U33: NA | V33: 0 | W33: 0 | X33: 0
A34: QR1 | B34: GLOUCESTERSHIRE ICB | C34: 28 | D34: 0.8928571429 | E34: 0.03571428571 | F34: 21 | G34: 4 | H34: 1 | I34: 1 | J34: 0 | K34: 1 | L34: 26 | M34: 0 | N34: 1 | O34: 0 | P34: 23 | Q34: 3 | R34: 0 | S34: 27 | T34: 1 | U34: 0 | V34: 27 | W34: 0 | X34: 0
A35: QRL | B35: HAMPSHIRE AND ISLE OF WIGHT ICB | C35: 27 | D35: 1 | E35: 0 | F35: 27 | G35: 0 | H35: 0 | I35: 0 | J35: 0 | K35: 0 | L35: 6 | M35: 957 | N35: 1 | O35: 0 | P35: 4 | Q35: 2 | R35: 0 | S35: 6 | T35: 1 | U35: 0 | V35: 6 | W35: 0 | X35: 0
A36: QRV | B36: NORTH WEST LONDON ICB | C36: 5 | D36: 1 | E36: 0 | F36: 4 | G36: 1 | H36: 0 | I36: 0 | J36: 0 | K36: 0 | L36: 5 | M36: 32 | N36: 1 | O36: 0 | P36: 5 | Q36: 0 | R36: 0 | S36: 5 | T36: 1 | U36: 0 | V36: 5 | W36: 0 | X36: 0
A37: QSL | B37: SOMERSET ICB | C37: 0 | D37: NA | E37: NA | F37: 0 | G37: 0 | H37: 0 | I37: 0 | J37: 0 | K37: 0 | L37: 0 | M37: 0 | N37: NA | O37: NA | P37: 0 | Q37: 0 | R37: 0 | S37: 0 | T37: NA | U37: NA | V37: 0 | W37: 0 | X37: 0
A38: QT1 | B38: NOTTINGHAM AND NOTTINGHAMSHIRE ICB | C38: 0 | D38: NA | E38: NA | F38: 0 | G38: 0 | H38: 0 | I38: 0 | J38: 0 | K38: 0 | L38: 0 | M38: 3 | N38: NA | O38: NA | P38: 0 | Q38: 0 | R38: 0 | S38: 0 | T38: NA | U38: NA | V38: 0 | W38: 0 | X38: 0
A39: QT6 | B39: CORNWALL AND THE ISLES OF SCILLY ICB | C39: 21 | D39: 1 | E39: 0 | F39: 18 | G39: 3 | H39: 0 | I39: 0 | J39: 0 | K39: 0 | L39: 19 | M39: 0 | N39: 1 | O39: 0 | P39: 17 | Q39: 2 | R39: 0 | S39: 19 | T39: 1 | U39: 0 | V39: 19 | W39: 0 | X39: 0
A40: QU9 | B40: BUCKINGHAMSHIRE, OXFORDSHIRE AND BERKSHIRE WEST ICB | C40: 80 | D40: 0.975 | E40: 0 | F40: 67 | G40: 11 | H40: 2 | I40: 0 | J40: 0 | K40: 0 | L40: 80 | M40: 2 | N40: 1 | O40: 0 | P40: 79 | Q40: 1 | R40: 0 | S40: 80 | T40: 1 | U40: 0 | V40: 80 | W40: 0 | X40: 0
A41: QUA | B41: BLACK COUNTRY ICB | C41: 1 | D41: * | E41: * | F41: * | G41: * | H41: * | I41: * | J41: * | K41: * | L41: 1 | M41: 1 | N41: * | O41: * | P41: * | Q41: * | R41: * | S41: 0 | T41: NA | U41: NA | V41: * | W41: * | X41: *
A42: QUE | B42: CAMBRIDGESHIRE AND PETERBOROUGH ICB | C42: 9 | D42: 0.8888888889 | E42: 0.1111111111 | F42: 6 | G42: 2 | H42: 0 | I42: 1 | J42: 0 | K42: 0 | L42: 8 | M42: 33 | N42: 1 | O42: 0 | P42: 7 | Q42: 1 | R42: 0 | S42: 9 | T42: 1 | U42: 0 | V42: 8 | W42: 1 | X42: 0
A43: QUY | B43: BRISTOL, NORTH SOMERSET AND SOUTH GLOUCESTERSHIRE ICB | C43: 0 | D43: NA | E43: NA | F43: 0 | G43: 0 | H43: 0 | I43: 0 | J43: 0 | K43: 0 | L43: 0 | M43: 0 | N43: NA | O43: NA | P43: 0 | Q43: 0 | R43: 0 | S43: 0 | T43: NA | U43: NA | V43: 0 | W43: 0 | X43: 0
A44: QVV | B44: DORSET ICB | C44: 26 | D44: 0.7692307692 | E44: 0.1153846154 | F44: 10 | G44: 10 | H44: 3 | I44: 2 | J44: 1 | K44: 0 | L44: 26 | M44: 0 | N44: 0.8846153846 | O44: 0.1153846154 | P44: 15 | Q44: 8 | R44: 3 | S44: 26 | T44: 1 | U44: 0 | V44: 22 | W44: 4 | X44: 0
A45: QWE | B45: SOUTH WEST LONDON ICB | C45: 9 | D45: 1 | E45: 0 | F45: 9 | G45: 0 | H45: 0 | I45: 0 | J45: 0 | K45: 0 | L45: 9 | M45: 0 | N45: 1 | O45: 0 | P45: 9 | Q45: 0 | R45: 0 | S45: 6 | T45: 1 | U45: 0 | V45: 6 | W45: 0 | X45: 0
A46: QWO | B46: WEST YORKSHIRE ICB | C46: 20 | D46: 1 | E46: 0 | F46: 19 | G46: 1 | H46: 0 | I46: 0 | J46: 0 | K46: 0 | L46: 16 | M46: 43 | N46: 1 | O46: 0 | P46: 15 | Q46: 1 | R46: 0 | S46: 20 | T46: 1 | U46: 0 | V46: 19 | W46: 1 | X46: 0
A47: QWU | B47: COVENTRY AND WARWICKSHIRE ICB | C47: 4 | D47: * | E47: * | F47: * | G47: * | H47: * | I47: * | J47: * | K47: * | L47: 0 | M47: 8 | N47: NA | O47: NA | P47: * | Q47: * | R47: * | S47: 0 | T47: NA | U47: NA | V47: * | W47: * | X47: *
A48: QXU | B48: SURREY HEARTLANDS ICB | C48: 0 | D48: NA | E48: NA | F48: 0 | G48: 0 | H48: 0 | I48: 0 | J48: 0 | K48: 0 | L48: 0 | M48: 5 | N48: NA | O48: NA | P48: 0 | Q48: 0 | R48: 0 | S48: 0 | T48: NA | U48: NA | V48: 0 | W48: 0 | X48: 0
A49: QYG | B49: CHESHIRE AND MERSEYSIDE ICB | C49: 40 | D49: 1 | E49: 0 | F49: 38 | G49: 2 | H49: 0 | I49: 0 | J49: 0 | K49: 0 | L49: 5 | M49: 9 | N49: 1 | O49: 0 | P49: 4 | Q49: 1 | R49: 0 | S49: 5 | T49: 1 | U49: 0 | V49: 5 | W49: 0 | X49: 0

Sheet Organisations
A3: ICB Code | B3: Trust Code | C3: Trust Name | D3: Question 1 | G3: Question 1 | M3: Question 2 | Q3: Question 2 | T3: Question 3 | W3: Question 3 | Z3: Mode of Collection - Question 1
D4: Total Responses | E4: Percentage Positive | F4: Percentage Negative | G4: Breakdown of Responses | M4: Total Responses | N4: Total Eligible | O4: Percentage Positive | P4: Percentage Negative | Q4: Breakdown of Responses | T4: Total Responses | U4: Percentage Positive | V4: Percentage Negative | W4: Breakdown of Responses
G5: Very Good | H5: Good | I5: Neither Good nor Poor | J5: Poor | K5: Very Poor | L5: Don't Know | Q5: Yes definitely | R5: Yes to some extent | S5: No | W5: Yes definitely | X5: Yes to some extent | Y5: No | Z5: SMS | AA5: Smartphone | AB5: Smartphone After | AC5: Paper | AD5: Paper After | AE5: Telephone | AF5: Online | AG5: Other
C6: England | D6: 1245 | E6: 0.9694779116 | F6: 0.01124497992 | G6: 1087 | H6: 120 | I6: 17 | J6: 7 | K6: 7 | L6: 7 | M6: 478 | N6: 2238 | O6: 0.9476987448 | P6: 0.05230125523 | Q6: 414 | R6: 39 | S6: 25 | T6: 510 | U6: 0.9960784314 | V6: 0.003921568627 | W6: 493 | X6: 15 | Y6: 2 | Z6: 61 | AA6: 12 | AB6: 4 | AC6: 32 | AD6: 106 | AE6: 21 | AF6: 1009 | AG6: 0
C7: Selection (excluding suppressed data) | D7: =SUBTOTAL(9,D8:D883) -> 1245 | E7: =IFERROR((G7+H7)/SUM(G7:L7), "-") -> 0.9729486023 | F7: =IFERROR((J7+K7)/SUM(G7:L7), "-") -> 0.01082055906 | G7: =SUBTOTAL(9,G8:G883) -> 978 | H7: 101 | I7: 12 | J7: 6 | K7: 6 | L7: 6 | M7: 478 | N7: 2238 | O7: =IFERROR((Q7+R7)/SUM(Q7:S7), "-") -> 0.9270516717 | P7: =IFERROR(S7/SUM(Q7:S7), "-") -> 0.07294832827 | Q7: =SUBTOTAL(9,Q8:Q883) -> 276 | R7: =SUBTOTAL(9,R8:R883) -> 29 | S7: =SUBTOTAL(9,S8:S883) -> 24 | T7: =SUBTOTAL(9,T8:T883) -> 510 | U7: =IFERROR((W7+X7)/SUM(W7:Y7), "-") -> 0.997826087 | V7: =IFERROR(Y7/SUM(W7:Y7), "-") -> 0.002173913043 | W7: =SUBTOTAL(9,W8:W883) -> 444 | X7: 15 | Y7: 1 | Z7: 47 | AA7: 7 | AB7: 4 | AC7: 29 | AD7: 21 | AE7: 21 | AF7: 980 | AG7: 0
A8: QE1 | B8: RW5 | C8: LANCASHIRE & SOUTH CUMBRIA NHS FOUNDATION TRUST | D8: 1 | E8: * | F8: * | G8: * | H8: * | I8: * | J8: * | K8: * | L8: * | M8: 1 | N8: 0 | O8: * | P8: * | Q8: * | R8: * | S8: * | T8: 1 | U8: * | V8: * | W8: * | X8: * | Y8: * | Z8: * | AA8: * | AB8: * | AC8: * | AD8: * | AE8: * | AF8: * | AG8: *
A9: QF7 | B9: RXE | C9: ROTHERHAM DONCASTER AND SOUTH HUMBER NHS FOUNDATION TRUST | D9: 0 | E9: NA | F9: NA | G9: 0 | H9: 0 | I9: 0 | J9: 0 | K9: 0 | L9: 0 | M9: 0 | N9: 0 | O9: NA | P9: NA | Q9: 0 | R9: 0 | S9: 0 | T9: 0 | U9: NA | V9: NA | W9: 0 | X9: 0 | Y9: 0 | Z9: 0 | AA9: 0 | AB9: 0 | AC9: 0 | AD9: 0 | AE9: 0 | AF9: 0 | AG9: 0
A10: QF7 | B10: RHQ | C10: SHEFFIELD TEACHING HOSPITALS NHS FOUNDATION TRUST | D10: 6 | E10: 1 | F10: 0 | G10: 3 | H10: 3 | I10: 0 | J10: 0 | K10: 0 | L10: 0 | M10: 5 | N10: 0 | O10: 1 | P10: 0 | Q10: 5 | R10: 0 | S10: 0 | T10: 5 | U10: 1 | V10: 0 | W10: 5 | X10: 0 | Y10: 0 | Z10: 6 | AA10: 0 | AB10: 0 | AC10: 0 | AD10: 0 | AE10: 0 | AF10: 0 | AG10: 0
A11: QF7 | B11: RFR | C11: THE ROTHERHAM NHS FOUNDATION TRUST | D11: 0 | E11: NA | F11: NA | G11: 0 | H11: 0 | I11: 0 | J11: 0 | K11: 0 | L11: 0 | M11: 0 | N11: 0 | O11: NA | P11: NA | Q11: 0 | R11: 0 | S11: 0 | T11: 0 | U11: NA | V11: NA | W11: 0 | X11: 0 | Y11: 0 | Z11: 0 | AA11: 0 | AB11: 0 | AC11: 0 | AD11: 0 | AE11: 0 | AF11: 0 | AG11: 0
A12: QHG | B12: RD8 | C12: MILTON KEYNES UNIVERSITY HOSPITAL NHS FOUNDATION TRUST | D12: 26 | E12: 0.9615384615 | F12: 0 | G12: 22 | H12: 3 | I12: 1 | J12: 0 | K12: 0 | L12: 0 | M12: 26 | N12: 80 | O12: 0.9615384615 | P12: 0.03846153846 | Q12: 23 | R12: 2 | S12: 1 | T12: 26 | U12: 1 | V12: 0 | W12: 25 | X12: 1 | Y12: 0 | Z12: 0 | AA12: 0 | AB12: 0 | AC12: 0 | AD12: 0 | AE12: 0 | AF12: 26 | AG12: 0
A13: QHL | B13: RYW | C13: BIRMINGHAM COMMUNITY HEALTHCARE NHS FOUNDATION TRUST | D13: 21 | E13: 1 | F13: 0 | G13: 18 | H13: 3 | I13: 0 | J13: 0 | K13: 0 | L13: 0 | M13: 21 | N13: 0 | O13: 1 | P13: 0 | Q13: 21 | R13: 0 | S13: 0 | T13: 21 | U13: 1 | V13: 0 | W13: 21 | X13: 0 | Y13: 0 | Z13: 0 | AA13: 0 | AB13: 0 | AC13: 21 | AD13: 0 | AE13: 0 | AF13: 0 | AG13: 0
A14: QHM | B14: RXP | C14: COUNTY DURHAM AND DARLINGTON NHS FOUNDATION TRUST | D14: 0 | E14: NA | F14: NA | G14: 0 | H14: 0 | I14: 0 | J14: 0 | K14: 0 | L14: 0 | M14: 0 | N14: 0 | O14: NA | P14: NA | Q14: 0 | R14: 0 | S14: 0 | T14: 0 | U14: NA | V14: NA | W14: 0 | X14: 0 | Y14: 0 | Z14: 0 | AA14: 0 | AB14: 0 | AC14: 0 | AD14: 0 | AE14: 0 | AF14: 0 | AG14: 0
A15: QHM | B15: RR7 | C15: GATESHEAD HEALTH NHS FOUNDATION TRUST | D15: 0 | E15: NA | F15: NA | G15: 0 | H15: 0 | I15: 0 | J15: 0 | K15: 0 | L15: 0 | M15: 0 | N15: 6 | O15: NA | P15: NA | Q15: 0 | R15: 0 | S15: 0 | T15: 0 | U15: NA | V15: NA | W15: 0 | X15: 0 | Y15: 0 | Z15: 0 | AA15: 0 | AB15: 0 | AC15: 0 | AD15: 0 | AE15: 0 | AF15: 0 | AG15: 0
A16: QHM | B16: RNN | C16: NORTH CUMBRIA INTEGRATED CARE NHS FOUNDATION TRUST | D16: 5 | E16: 0.8 | F16: 0 | G16: 2 | H16: 2 | I16: 0 | J16: 0 | K16: 0 | L16: 1 | M16: 4 | N16: 11 | O16: * | P16: * | Q16: * | R16: * | S16: * | T16: 4 | U16: * | V16: * | W16: * | X16: * | Y16: * | Z16: 0 | AA16: 0 | AB16: 0 | AC16: 0 | AD16: 5 | AE16: 0 | AF16: 0 | AG16: 0
A17: QHM | B17: RVW | C17: NORTH TEES AND HARTLEPOOL NHS FOUNDATION TRUST | D17: 9 | E17: 1 | F17: 0 | G17: 9 | H17: 0 | I17: 0 | J17: 0 | K17: 0 | L17: 0 | M17: 0 | N17: 0 | O17: NA | P17: NA | Q17: 0 | R17: 0 | S17: 0 | T17: 0 | U17: NA | V17: NA | W17: 0 | X17: 0 | Y17: 0 | Z17: 3 | AA17: 0 | AB17: 0 | AC17: 6 | AD17: 0 | AE17: 0 | AF17: 0 | AG17: 0
A18: QHM | B18: RTF | C18: NORTHUMBRIA HEALTHCARE NHS FOUNDATION TRUST | D18: 0 | E18: NA | F18: NA | G18: 0 | H18: 0 | I18: 0 | J18: 0 | K18: 0 | L18: 0 | M18: 0 | N18: 29 | O18: NA | P18: NA | Q18: 0 | R18: 0 | S18: 0 | T18: 0 | U18: NA | V18: NA | W18: 0 | X18: 0 | Y18: 0 | Z18: 0 | AA18: 0 | AB18: 0 | AC18: 0 | AD18: 0 | AE18: 0 | AF18: 0 | AG18: 0
A19: QHM | B19: RTR | C19: SOUTH TEES HOSPITALS NHS FOUNDATION TRUST | D19: 2 | E19: * | F19: * | G19: * | H19: * | I19: * | J19: * | K19: * | L19: * | M19: 2 | N19: 0 | O19: * | P19: * | Q19: * | R19: * | S19: * | T19: 2 | U19: * | V19: * | W19: * | X19: * | Y19: * | Z19: * | AA19: * | AB19: * | AC19: * | AD19: * | AE19: * | AF19: * | AG19: *
A20: QHM | B20: R0B | C20: SOUTH TYNESIDE AND SUNDERLAND NHS FOUNDATION TRUST | D20: 3 | E20: * | F20: * | G20: * | H20: * | I20: * | J20: * | K20: * | L20: * | M20: 3 | N20: 0 | O20: * | P20: * | Q20: * | R20: * | S20: * | T20: 3 | U20: * | V20: * | W20: * | X20: * | Y20: * | Z20: * | AA20: * | AB20: * | AC20: * | AD20: * | AE20: * | AF20: * | AG20: *
A21: QHM | B21: RTD | C21: THE NEWCASTLE UPON TYNE HOSPITALS NHS FOUNDATION TRUST | D21: 0 | E21: NA | F21: NA | G21: 0 | H21: 0 | I21: 0 | J21: 0 | K21: 0 | L21: 0 | M21: 0 | N21: 0 | O21: NA | P21: NA | Q21: 0 | R21: 0 | S21: 0 | T21: 0 | U21: NA | V21: NA | W21: 0 | X21: 0 | Y21: 0 | Z21: 0 | AA21: 0 | AB21: 0 | AC21: 0 | AD21: 0 | AE21: 0 | AF21: 0 | AG21: 0
A22: QJ2 | B22: RY8 | C22: DERBYSHIRE COMMUNITY HEALTH SERVICES NHS FOUNDATION TRUST | D22: 17 | E22: 0.8823529412 | F22: 0 | G22: 11 | H22: 4 | I22: 1 | J22: 0 | K22: 0 | L22: 1 | M22: 17 | N22: 0 | O22: 1 | P22: 0 | Q22: 12 | R22: 5 | S22: 0 | T22: 17 | U22: 1 | V22: 0 | W22: 12 | X22: 5 | Y22: 0 | Z22: 17 | AA22: 0 | AB22: 0 | AC22: 0 | AD22: 0 | AE22: 0 | AF22: 0 | AG22: 0
A23: QJG | B23: NQA | C23: PROVIDE | D23: 759 | E23: 0.9828722003 | F23: 0.00790513834 | G23: 690 | H23: 56 | I23: 4 | J23: 2 | K23: 4 | L23: 3 | M23: 119 | N23: 119 | O23: 0.8403361345 | P23: 0.1596638655 | Q23: 100 | R23: 0 | S23: 19 | T23: 150 | U23: 0.9933333333 | V23: 0.006666666667 | W23: 149 | X23: 0 | Y23: 1 | Z23: 0 | AA23: 0 | AB23: 0 | AC23: 0 | AD23: 0 | AE23: 0 | AF23: 759 | AG23: 0
A24: QJK | B24: NR5 | C24: LIVEWELL SOUTHWEST | D24: 6 | E24: 1 | F24: 0 | G24: 6 | H24: 0 | I24: 0 | J24: 0 | K24: 0 | L24: 0 | M24: 6 | N24: 6 | O24: 1 | P24: 0 | Q24: 6 | R24: 0 | S24: 0 | T24: 6 | U24: 1 | V24: 0 | W24: 6 | X24: 0 | Y24: 0 | Z24: 0 | AA24: 0 | AB24: 0 | AC24: 0 | AD24: 0 | AE24: 0 | AF24: 6 | AG24: 0
A25: QJM | B25: RY5 | C25: LINCOLNSHIRE COMMUNITY HEALTH SERVICES NHS TRUST | D25: 13 | E25: 1 | F25: 0 | G25: 12 | H25: 1 | I25: 0 | J25: 0 | K25: 0 | L25: 0 | M25: 13 | N25: 309 | O25: 1 | P25: 0 | Q25: 12 | R25: 1 | S25: 0 | T25: 13 | U25: 1 | V25: 0 | W25: 13 | X25: 0 | Y25: 0 | Z25: 0 | AA25: 0 | AB25: 0 | AC25: 0 | AD25: 0 | AE25: 13 | AF25: 0 | AG25: 0
A26: QK1 | B26: RWE | C26: UNIVERSITY HOSPITALS OF LEICESTER NHS TRUST | D26: 5 | E26: 1 | F26: 0 | G26: 5 | H26: 0 | I26: 0 | J26: 0 | K26: 0 | L26: 0 | M26: 0 | N26: 49 | O26: NA | P26: NA | Q26: 0 | R26: 0 | S26: 0 | T26: 0 | U26: NA | V26: NA | W26: 0 | X26: 0 | Y26: 0 | Z26: 0 | AA26: 5 | AB26: 0 | AC26: 0 | AD26: 0 | AE26: 0 | AF26: 0 | AG26: 0
A27: QKK | B27: RJ1 | C27: GUY'S AND ST THOMAS' NHS FOUNDATION TRUST | D27: 5 | E27: 0.8 | F27: 0.2 | G27: * | H27: * | I27: * | J27: * | K27: * | L27: * | M27: 5 | N27: 29 | O27: 1 | P27: 0 | Q27: * | R27: * | S27: * | T27: 5 | U27: 1 | V27: 0 | W27: 3 | X27: 2 | Y27: 0 | Z27: * | AA27: * | AB27: * | AC27: * | AD27: * | AE27: * | AF27: * | AG27: *
A28: QKK | B28: RJZ | C28: KING'S COLLEGE HOSPITAL NHS FOUNDATION TRUST | D28: 0 | E28: NA | F28: NA | G28: 0 | H28: 0 | I28: 0 | J28: 0 | K28: 0 | L28: 0 | M28: 0 | N28: 103 | O28: NA | P28: NA | Q28: 0 | R28: 0 | S28: 0 | T28: 0 | U28: NA | V28: NA | W28: 0 | X28: 0 | Y28: 0 | Z28: 0 | AA28: 0 | AB28: 0 | AC28: 0 | AD28: 0 | AE28: 0 | AF28: 0 | AG28: 0
A29: QM7 | B29: RY4 | C29: HERTFORDSHIRE COMMUNITY NHS TRUST | D29: 7 | E29: 0.8571428571 | F29: 0.1428571429 | G29: 5 | H29: 1 | I29: 0 | J29: 0 | K29: 1 | L29: 0 | M29: 7 | N29: 0 | O29: 0.8571428571 | P29: 0.1428571429 | Q29: 5 | R29: 1 | S29: 1 | T29: 7 | U29: 1 | V29: 0 | W29: 6 | X29: 1 | Y29: 0 | Z29: 0 | AA29: 0 | AB29: 0 | AC29: 0 | AD29: 0 | AE29: 0 | AF29: 7 | AG29: 0
A30: QMF | B30: RWK | C30: EAST LONDON NHS FOUNDATION TRUST | D30: 0 | E30: NA | F30: NA | G30: 0 | H30: 0 | I30: 0 | J30: 0 | K30: 0 | L30: 0 | M30: 0 | N30: 153 | O30: NA | P30: NA | Q30: 0 | R30: 0 | S30: 0 | T30: 0 | U30: NA | V30: NA | W30: 0 | X30: 0 | Y30: 0 | Z30: 0 | AA30: 0 | AB30: 0 | AC30: 0 | AD30: 0 | AE30: 0 | AF30: 0 | AG30: 0
A31: QMF | B31: RQX | C31: HOMERTON HEALTHCARE NHS FOUNDATION TRUST | D31: 18 | E31: 0.9444444444 | F31: 0.05555555556 | G31: 16 | H31: 1 | I31: 0 | J31: 1 | K31: 0 | L31: 0 | M31: 17 | N31: 17 | O31: 1 | P31: 0 | Q31: * | R31: * | S31: * | T31: 17 | U31: 0.9411764706 | V31: 0.05882352941 | W31: * | X31: * | Y31: * | Z31: 18 | AA31: 0 | AB31: 0 | AC31: 0 | AD31: 0 | AE31: 0 | AF31: 0 | AG31: 0
A32: QMF | B32: Y05455 | C32: NELFT OOH | D32: 4 | E32: * | F32: * | G32: * | H32: * | I32: * | J32: * | K32: * | L32: * | M32: 0 | N32: 5 | O32: NA | P32: NA | Q32: 0 | R32: 0 | S32: 0 | T32: 0 | U32: NA | V32: NA | W32: 0 | X32: 0 | Y32: 0 | Z32: * | AA32: * | AB32: * | AC32: * | AD32: * | AE32: * | AF32: * | AG32: *
A33: QMJ | B33: RRV | C33: UNIVERSITY COLLEGE LONDON HOSPITALS NHS FOUNDATION TRUST | D33: 0 | E33: NA | F33: NA | G33: 0 | H33: 0 | I33: 0 | J33: 0 | K33: 0 | L33: 0 | M33: 0 | N33: 0 | O33: NA | P33: NA | Q33: 0 | R33: 0 | S33: 0 | T33: 0 | U33: NA | V33: NA | W33: 0 | X33: 0 | Y33: 0 | Z33: 0 | AA33: 0 | AB33: 0 | AC33: 0 | AD33: 0 | AE33: 0 | AF33: 0 | AG33: 0
A34: QMM | B34: RY3 | C34: NORFOLK COMMUNITY HEALTH AND CARE NHS TRUST | D34: 37 | E34: 0.972972973 | F34: 0 | G34: 32 | H34: 4 | I34: 1 | J34: 0 | K34: 0 | L34: 0 | M34: 2 | N34: 0 | O34: * | P34: * | Q34: * | R34: * | S34: * | T34: 2 | U34: * | V34: * | W34: * | X34: * | Y34: * | Z34: 0 | AA34: 0 | AB34: 0 | AC34: 0 | AD34: 0 | AE34: 0 | AF34: 37 | AG34: 0
A35: QNC | B35: RRE | C35: MIDLANDS PARTNERSHIP NHS FOUNDATION TRUST | D35: 7 | E35: 0.8571428571 | F35: 0 | G35: 6 | H35: 0 | I35: 1 | J35: 0 | K35: 0 | L35: 0 | M35: 6 | N35: 0 | O35: 1 | P35: 0 | Q35: 5 | R35: 1 | S35: 0 | T35: 6 | U35: 1 | V35: 0 | W35: 6 | X35: 0 | Y35: 0 | Z35: 0 | AA35: 0 | AB35: 0 | AC35: 0 | AD35: 0 | AE35: 7 | AF35: 0 | AG35: 0
A36: QNX | B36: RXC | C36: EAST SUSSEX HEALTHCARE NHS TRUST | D36: 1 | E36: * | F36: * | G36: * | H36: * | I36: * | J36: * | K36: * | L36: * | M36: 0 | N36: 0 | O36: NA | P36: NA | Q36: 0 | R36: 0 | S36: 0 | T36: 0 | U36: NA | V36: NA | W36: 0 | X36: 0 | Y36: 0 | Z36: * | AA36: * | AB36: * | AC36: * | AD36: * | AE36: * | AF36: * | AG36: *
A37: QNX | B37: RDR | C37: SUSSEX COMMUNITY NHS FOUNDATION TRUST | D37: 4 | E37: * | F37: * | G37: * | H37: * | I37: * | J37: * | K37: * | L37: * | M37: 4 | N37: 4 | O37: * | P37: * | Q37: * | R37: * | S37: * | T37: 4 | U37: * | V37: * | W37: * | X37: * | Y37: * | Z37: * | AA37: * | AB37: * | AC37: * | AD37: * | AE37: * | AF37: * | AG37: *
A38: QOC | B38: R1D | C38: SHROPSHIRE COMMUNITY HEALTH NHS TRUST | D38: 0 | E38: NA | F38: NA | G38: 0 | H38: 0 | I38: 0 | J38: 0 | K38: 0 | L38: 0 | M38: 0 | N38: 0 | O38: NA | P38: NA | Q38: 0 | R38: 0 | S38: 0 | T38: 0 | U38: NA | V38: NA | W38: 0 | X38: 0 | Y38: 0 | Z38: 0 | AA38: 0 | AB38: 0 | AC38: 0 | AD38: 0 | AE38: 0 | AF38: 0 | AG38: 0
A39: QOP | B39: RMC | C39: BOLTON NHS FOUNDATION TRUST | D39: 0 | E39: NA | F39: NA | G39: 0 | H39: 0 | I39: 0 | J39: 0 | K39: 0 | L39: 0 | M39: 0 | N39: 0 | O39: NA | P39: NA | Q39: 0 | R39: 0 | S39: 0 | T39: 0 | U39: NA | V39: NA | W39: 0 | X39: 0 | Y39: 0 | Z39: 0 | AA39: 0 | AB39: 0 | AC39: 0 | AD39: 0 | AE39: 0 | AF39: 0 | AG39: 0
A40: QOP | B40: R0A | C40: MANCHESTER UNIVERSITY NHS FOUNDATION TRUST | D40: 0 | E40: NA | F40: NA | G40: 0 | H40: 0 | I40: 0 | J40: 0 | K40: 0 | L40: 0 | M40: 0 | N40: 42 | O40: NA | P40: NA | Q40: 0 | R40: 0 | S40: 0 | T40: 0 | U40: NA | V40: NA | W40: 0 | X40: 0 | Y40: 0 | Z40: 0 | AA40: 0 | AB40: 0 | AC40: 0 | AD40: 0 | AE40: 0 | AF40: 0 | AG40: 0
A41: QOP | B41: RM3 | C41: NORTHERN CARE ALLIANCE NHS FOUNDATION TRUST | D41: 0 | E41: NA | F41: NA | G41: 0 | H41: 0 | I41: 0 | J41: 0 | K41: 0 | L41: 0 | M41: 0 | N41: 0 | O41: NA | P41: NA | Q41: 0 | R41: 0 | S41: 0 | T41: 0 | U41: NA | V41: NA | W41: 0 | X41: 0 | Y41: 0 | Z41: 0 | AA41: 0 | AB41: 0 | AC41: 0 | AD41: 0 | AE41: 0 | AF41: 0 | AG41: 0
A42: QOP | B42: RMP | C42: TAMESIDE AND GLOSSOP INTEGRATED CARE NHS FOUNDATION TRUST | D42: 0 | E42: NA | F42: NA | G42: 0 | H42: 0 | I42: 0 | J42: 0 | K42: 0 | L42: 0 | M42: 0 | N42: 6 | O42: NA | P42: NA | Q42: 0 | R42: 0 | S42: 0 | T42: 0 | U42: NA | V42: NA | W42: 0 | X42: 0 | Y42: 0 | Z42: 0 | AA42: 0 | AB42: 0 | AC42: 0 | AD42: 0 | AE42: 0 | AF42: 0 | AG42: 0
A43: QOP | B43: RRF | C43: WRIGHTINGTON, WIGAN AND LEIGH NHS FOUNDATION TRUST | D43: 0 | E43: NA | F43: NA | G43: 0 | H43: 0 | I43: 0 | J43: 0 | K43: 0 | L43: 0 | M43: 0 | N43: 0 | O43: NA | P43: NA | Q43: 0 | R43: 0 | S43: 0 | T43: 0 | U43: NA | V43: NA | W43: 0 | X43: 0 | Y43: 0 | Z43: 0 | AA43: 0 | AB43: 0 | AC43: 0 | AD43: 0 | AE43: 0 | AF43: 0 | AG43: 0
A44: QOQ | B44: NNF | C44: CITY HEALTH CARE PARTNERSHIP CIC | D44: 4 | E44: * | F44: * | G44: * | H44: * | I44: * | J44: * | K44: * | L44: * | M44: 4 | N44: 0 | O44: * | P44: * | Q44: * | R44: * | S44: * | T44: 4 | U44: * | V44: * | W44: * | X44: * | Y44: * | Z44: * | AA44: * | AB44: * | AC44: * | AD44: * | AE44: * | AF44: * | AG44: *
A45: QOQ | B45: RJL | C45: NORTHERN LINCOLNSHIRE AND GOOLE NHS FOUNDATION TRUST | D45: 0 | E45: NA | F45: NA | G45: 0 | H45: 0 | I45: 0 | J45: 0 | K45: 0 | L45: 0 | M45: 0 | N45: 0 | O45: NA | P45: NA | Q45: 0 | R45: 0 | S45: 0 | T45: 0 | U45: NA | V45: NA | W45: 0 | X45: 0 | Y45: 0 | Z45: 0 | AA45: 0 | AB45: 0 | AC45: 0 | AD45: 0 | AE45: 0 | AF45: 0 | AG45: 0
A46: QOQ | B46: RCB | C46: YORK AND SCARBOROUGH TEACHING HOSPITALS NHS FOUNDATION TRUST | D46: 4 | E46: * | F46: * | G46: * | H46: * | I46: * | J46: * | K46: * | L46: * | M46: 4 | N46: 6 | O46: * | P46: * | Q46: * | R46: * | S46: * | T46: 3 | U46: * | V46: * | W46: * | X46: * | Y46: * | Z46: * | AA46: * | AB46: * | AC46: * | AD46: * | AE46: * | AF46: * | AG46: *
A47: QOX | B47: AXG | C47: WILTSHIRE HEALTH & CARE | D47: 11 | E47: 1 | F47: 0 | G47: 9 | H47: 2 | I47: 0 | J47: 0 | K47: 0 | L47: 0 | M47: 11 | N47: 171 | O47: 1 | P47: 0 | Q47: 8 | R47: 3 | S47: 0 | T47: 11 | U47: 1 | V47: 0 | W47: 11 | X47: 0 | Y47: 0 | Z47: 2 | AA47: 0 | AB47: 4 | AC47: 0 | AD47: 0 | AE47: 1 | AF47: 4 | AG47: 0
A48: QPM | B48: RP1 | C48: NORTHAMPTONSHIRE HEALTHCARE NHS FOUNDATION TRUST | D48: 0 | E48: NA | F48: NA | G48: 0 | H48: 0 | I48: 0 | J48: 0 | K48: 0 | L48: 0 | M48: 0 | N48: 0 | O48: NA | P48: NA | Q48: 0 | R48: 0 | S48: 0 | T48: 0 | U48: NA | V48: NA | W48: 0 | X48: 0 | Y48: 0 | Z48: 0 | AA48: 0 | AB48: 0 | AC48: 0 | AD48: 0 | AE48: 0 | AF48: 0 | AG48: 0
A49: QR1 | B49: RTQ | C49: GLOUCESTERSHIRE HEALTH AND CARE NHS FOUNDATION TRUST | D49: 28 | E49: 0.8928571429 | F49: 0.03571428571 | G49: 21 | H49: 4 | I49: 1 | J49: 1 | K49: 0 | L49: 1 | M49: 26 | N49: 0 | O49: 1 | P49: 0 | Q49: 23 | R49: 3 | S49: 0 | T49: 27 | U49: 1 | V49: 0 | W49: 27 | X49: 0 | Y49: 0 | Z49: 0 | AA49: 0 | AB49: 0 | AC49: 0 | AD49: 0 | AE49: 0 | AF49: 28 | AG49: 0
A50: QRL | B50: R1F | C50: ISLE OF WIGHT NHS TRUST | D50: 11 | E50: 1 | F50: 0 | G50: 11 | H50: 0 | I50: 0 | J50: 0 | K50: 0 | L50: 0 | M50: 0 | N50: 0 | O50: NA | P50: NA | Q50: 0 | R50: 0 | S50: 0 | T50: 0 | U50: NA | V50: NA | W50: 0 | X50: 0 | Y50: 0 | Z50: 0 | AA50: 0 | AB50: 0 | AC50: 0 | AD50: 11 | AE50: 0 | AF50: 0 | AG50: 0
A51: QRL | B51: R1C | C51: SOLENT NHS TRUST | D51: 10 | E51: 1 | F51: 0 | G51: 10 | H51: 0 | I51: 0 | J51: 0 | K51: 0 | L51: 0 | M51: 0 | N51: 0 | O51: NA | P51: NA | Q51: 0 | R51: 0 | S51: 0 | T51: 0 | U51: NA | V51: NA | W51: 0 | X51: 0 | Y51: 0 | Z51: 0 | AA51: 0 | AB51: 0 | AC51: 0 | AD51: 0 | AE51: 0 | AF51: 10 | AG51: 0
A52: QRL | B52: RW1 | C52: SOUTHERN HEALTH NHS FOUNDATION TRUST | D52: 6 | E52: 1 | F52: 0 | G52: 6 | H52: 0 | I52: 0 | J52: 0 | K52: 0 | L52: 0 | M52: 6 | N52: 957 | O52: 1 | P52: 0 | Q52: 4 | R52: 2 | S52: 0 | T52: 6 | U52: 1 | V52: 0 | W52: 6 | X52: 0 | Y52: 0 | Z52: 0 | AA52: 0 | AB52: 0 | AC52: 0 | AD52: 0 | AE52: 0 | AF52: 6 | AG52: 0
A53: QRV | B53: RYJ | C53: IMPERIAL COLLEGE HEALTHCARE NHS TRUST | D53: 5 | E53: 1 | F53: 0 | G53: 4 | H53: 1 | I53: 0 | J53: 0 | K53: 0 | L53: 0 | M53: 5 | N53: 32 | O53: 1 | P53: 0 | Q53: 5 | R53: 0 | S53: 0 | T53: 5 | U53: 1 | V53: 0 | W53: 5 | X53: 0 | Y53: 0 | Z53: 0 | AA53: 0 | AB53: 0 | AC53: 0 | AD53: 0 | AE53: 0 | AF53: 5 | AG53: 0
A54: QRV | B54: R1K | C54: LONDON NORTH WEST UNIVERSITY HEALTHCARE NHS TRUST | D54: 0 | E54: NA | F54: NA | G54: 0 | H54: 0 | I54: 0 | J54: 0 | K54: 0 | L54: 0 | M54: 0 | N54: 0 | O54: NA | P54: NA | Q54: 0 | R54: 0 | S54: 0 | T54: 0 | U54: NA | V54: NA | W54: 0 | X54: 0 | Y54: 0 | Z54: 0 | AA54: 0 | AB54: 0 | AC54: 0 | AD54: 0 | AE54: 0 | AF54: 0 | AG54: 0
A55: QT1 | B55: NR3 | C55: NOTTINGHAM CITYCARE PARTNERSHIP | D55: 0 | E55: NA | F55: NA | G55: 0 | H55: 0 | I55: 0 | J55: 0 | K55: 0 | L55: 0 | M55: 0 | N55: 3 | O55: NA | P55: NA | Q55: 0 | R55: 0 | S55: 0 | T55: 0 | U55: NA | V55: NA | W55: 0 | X55: 0 | Y55: 0 | Z55: 0 | AA55: 0 | AB55: 0 | AC55: 0 | AD55: 0 | AE55: 0 | AF55: 0 | AG55: 0
A56: QT6 | B56: REF | C56: ROYAL CORNWALL HOSPITALS NHS TRUST | D56: 21 | E56: 1 | F56: 0 | G56: 18 | H56: 3 | I56: 0 | J56: 0 | K56: 0 | L56: 0 | M56: 19 | N56: 0 | O56: 1 | P56: 0 | Q56: 17 | R56: 2 | S56: 0 | T56: 19 | U56: 1 | V56: 0 | W56: 19 | X56: 0 | Y56: 0 | Z56: 0 | AA56: 2 | AB56: 0 | AC56: 0 | AD56: 0 | AE56: 0 | AF56: 19 | AG56: 0
A57: QU9 | B57: RXQ | C57: BUCKINGHAMSHIRE HEALTHCARE NHS TRUST | D57: 2 | E57: * | F57: * | G57: * | H57: * | I57: * | J57: * | K57: * | L57: * | M57: 2 | N57: 2 | O57: * | P57: * | Q57: * | R57: * | S57: * | T57: 2 | U57: * | V57: * | W57: * | X57: * | Y57: * | Z57: * | AA57: * | AB57: * | AC57: * | AD57: * | AE57: * | AF57: * | AG57: *
A58: QU9 | B58: RTH | C58: OXFORD UNIVERSITY HOSPITALS NHS FOUNDATION TRUST | D58: 78 | E58: 0.9743589744 | F58: 0 | G58: * | H58: * | I58: * | J58: * | K58: * | L58: * | M58: 78 | N58: 0 | O58: 1 | P58: 0 | Q58: * | R58: * | S58: * | T58: 78 | U58: 1 | V58: 0 | W58: 78 | X58: 0 | Y58: 0 | Z58: * | AA58: * | AB58: * | AC58: * | AD58: * | AE58: * | AF58: * | AG58: *
A59: QUA | B59: RL4 | C59: THE ROYAL WOLVERHAMPTON NHS TRUST | D59: 0 | E59: NA | F59: NA | G59: 0 | H59: 0 | I59: 0 | J59: 0 | K59: 0 | L59: 0 | M59: 0 | N59: 0 | O59: NA | P59: NA | Q59: 0 | R59: 0 | S59: 0 | T59: 0 | U59: NA | V59: NA | W59: 0 | X59: 0 | Y59: 0 | Z59: 0 | AA59: 0 | AB59: 0 | AC59: 0 | AD59: 0 | AE59: 0 | AF59: 0 | AG59: 0
A60: QUA | B60: RBK | C60: WALSALL HEALTHCARE NHS TRUST | D60: 1 | E60: * | F60: * | G60: * | H60: * | I60: * | J60: * | K60: * | L60: * | M60: 1 | N60: 1 | O60: * | P60: * | Q60: * | R60: * | S60: * | T60: 0 | U60: NA | V60: NA | W60: 0 | X60: 0 | Y60: 0 | Z60: * | AA60: * | AB60: * | AC60: * | AD60: * | AE60: * | AF60: * | AG60: *
A61: QUE | B61: RGT | C61: CAMBRIDGE UNIVERSITY HOSPITALS NHS FOUNDATION TRUST | D61: 3 | E61: * | F61: * | G61: * | H61: * | I61: * | J61: * | K61: * | L61: * | M61: 2 | N61: 27 | O61: * | P61: * | Q61: * | R61: * | S61: * | T61: 3 | U61: * | V61: * | W61: * | X61: * | Y61: * | Z61: * | AA61: * | AB61: * | AC61: * | AD61: * | AE61: * | AF61: * | AG61: *
A62: QUE | B62: RT1 | C62: CAMBRIDGESHIRE AND PETERBOROUGH NHS FOUNDATION TRUST | D62: 6 | E62: 0.8333333333 | F62: 0.1666666667 | G62: * | H62: * | I62: * | J62: * | K62: * | L62: * | M62: 6 | N62: 6 | O62: 1 | P62: 0 | Q62: * | R62: * | S62: * | T62: 6 | U62: 1 | V62: 0 | W62: 5 | X62: 1 | Y62: 0 | Z62: * | AA62: * | AB62: * | AC62: * | AD62: * | AE62: * | AF62: * | AG62: *
A63: QVV | B63: RDY | C63: DORSET HEALTHCARE UNIVERSITY NHS FOUNDATION TRUST | D63: 26 | E63: 0.7692307692 | F63: 0.1153846154 | G63: 10 | H63: 10 | I63: 3 | J63: 2 | K63: 1 | L63: 0 | M63: 26 | N63: 0 | O63: 0.8846153846 | P63: 0.1153846154 | Q63: 15 | R63: 8 | S63: 3 | T63: 26 | U63: 1 | V63: 0 | W63: 22 | X63: 4 | Y63: 0 | Z63: 0 | AA63: 0 | AB63: 0 | AC63: 0 | AD63: 0 | AE63: 0 | AF63: 26 | AG63: 0
A64: QWE | B64: RVR | C64: EPSOM AND ST HELIER UNIVERSITY HOSPITALS NHS TRUST | D64: 3 | E64: * | F64: * | G64: * | H64: * | I64: * | J64: * | K64: * | L64: * | M64: 3 | N64: 0 | O64: * | P64: * | Q64: * | R64: * | S64: * | T64: 0 | U64: NA | V64: NA | W64: 0 | X64: 0 | Y64: 0 | Z64: * | AA64: * | AB64: * | AC64: * | AD64: * | AE64: * | AF64: * | AG64: *
A65: QWE | B65: RJ7 | C65: ST GEORGE'S UNIVERSITY HOSPITALS NHS FOUNDATION TRUST | D65: 6 | E65: 1 | F65: 0 | G65: * | H65: * | I65: * | J65: * | K65: * | L65: * | M65: 6 | N65: 0 | O65: 1 | P65: 0 | Q65: * | R65: * | S65: * | T65: 6 | U65: 1 | V65: 0 | W65: 6 | X65: 0 | Y65: 0 | Z65: * | AA65: * | AB65: * | AC65: * | AD65: * | AE65: * | AF65: * | AG65: *
A66: QWO | B66: RCF | C66: AIREDALE NHS FOUNDATION TRUST | D66: 0 | E66: NA | F66: NA | G66: 0 | H66: 0 | I66: 0 | J66: 0 | K66: 0 | L66: 0 | M66: 0 | N66: 0 | O66: NA | P66: NA | Q66: 0 | R66: 0 | S66: 0 | T66: 0 | U66: NA | V66: NA | W66: 0 | X66: 0 | Y66: 0 | Z66: 0 | AA66: 0 | AB66: 0 | AC66: 0 | AD66: 0 | AE66: 0 | AF66: 0 | AG66: 0
A67: QWO | B67: RAE | C67: BRADFORD TEACHING HOSPITALS NHS FOUNDATION TRUST | D67: 0 | E67: NA | F67: NA | G67: 0 | H67: 0 | I67: 0 | J67: 0 | K67: 0 | L67: 0 | M67: 0 | N67: 0 | O67: NA | P67: NA | Q67: 0 | R67: 0 | S67: 0 | T67: 0 | U67: NA | V67: NA | W67: 0 | X67: 0 | Y67: 0 | Z67: 0 | AA67: 0 | AB67: 0 | AC67: 0 | AD67: 0 | AE67: 0 | AF67: 0 | AG67: 0
A68: QWO | B68: RY6 | C68: LEEDS COMMUNITY HEALTHCARE NHS TRUST | D68: 10 | E68: 1 | F68: 0 | G68: 9 | H68: 1 | I68: 0 | J68: 0 | K68: 0 | L68: 0 | M68: 10 | N68: 0 | O68: 1 | P68: 0 | Q68: 9 | R68: 1 | S68: 0 | T68: 10 | U68: 1 | V68: 0 | W68: 9 | X68: 1 | Y68: 0 | Z68: 0 | AA68: 0 | AB68: 0 | AC68: 0 | AD68: 5 | AE68: 0 | AF68: 5 | AG68: 0
A69: QWO | B69: RXF | C69: MID YORKSHIRE TEACHING NHS TRUST | D69: 10 | E69: 1 | F69: 0 | G69: 10 | H69: 0 | I69: 0 | J69: 0 | K69: 0 | L69: 0 | M69: 6 | N69: 43 | O69: 1 | P69: 0 | Q69: 6 | R69: 0 | S69: 0 | T69: 10 | U69: 1 | V69: 0 | W69: 10 | X69: 0 | Y69: 0 | Z69: 1 | AA69: 0 | AB69: 0 | AC69: 0 | AD69: 0 | AE69: 0 | AF69: 9 | AG69: 0
A70: QWU | B70: RLT | C70: GEORGE ELIOT HOSPITAL NHS TRUST | D70: 0 | E70: NA | F70: NA | G70: 0 | H70: 0 | I70: 0 | J70: 0 | K70: 0 | L70: 0 | M70: 0 | N70: 0 | O70: NA | P70: NA | Q70: 0 | R70: 0 | S70: 0 | T70: 0 | U70: NA | V70: NA | W70: 0 | X70: 0 | Y70: 0 | Z70: 0 | AA70: 0 | AB70: 0 | AC70: 0 | AD70: 0 | AE70: 0 | AF70: 0 | AG70: 0
A71: QWU | B71: RJC | C71: SOUTH WARWICKSHIRE UNIVERSITY NHS FOUNDATION TRUST | D71: 4 | E71: * | F71: * | G71: * | H71: * | I71: * | J71: * | K71: * | L71: * | M71: 0 | N71: 8 | O71: NA | P71: NA | Q71: 0 | R71: 0 | S71: 0 | T71: 0 | U71: NA | V71: NA | W71: 0 | X71: 0 | Y71: 0 | Z71: * | AA71: * | AB71: * | AC71: * | AD71: * | AE71: * | AF71: * | AG71: *
A72: QWU | B72: RKB | C72: UNIVERSITY HOSPITALS COVENTRY AND WARWICKSHIRE NHS TRUST | D72: 0 | E72: NA | F72: NA | G72: 0 | H72: 0 | I72: 0 | J72: 0 | K72: 0 | L72: 0 | M72: 0 | N72: 0 | O72: NA | P72: NA | Q72: 0 | R72: 0 | S72: 0 | T72: 0 | U72: NA | V72: NA | W72: 0 | X72: 0 | Y72: 0 | Z72: 0 | AA72: 0 | AB72: 0 | AC72: 0 | AD72: 0 | AE72: 0 | AF72: 0 | AG72: 0
A73: QXU | B73: NDJ | C73: FIRST COMMUNITY HEALTH AND CARE CIC | D73: 0 | E73: NA | F73: NA | G73: 0 | H73: 0 | I73: 0 | J73: 0 | K73: 0 | L73: 0 | M73: 0 | N73: 5 | O73: NA | P73: NA | Q73: 0 | R73: 0 | S73: 0 | T73: 0 | U73: NA | V73: NA | W73: 0 | X73: 0 | Y73: 0 | Z73: 0 | AA73: 0 | AB73: 0 | AC73: 0 | AD73: 0 | AE73: 0 | AF73: 0 | AG73: 0
A74: QXU | B74: RA2 | C74: ROYAL SURREY COUNTY HOSPITAL NHS FOUNDATION TRUST | D74: 0 | E74: NA | F74: NA | G74: 0 | H74: 0 | I74: 0 | J74: 0 | K74: 0 | L74: 0 | M74: 0 | N74: 0 | O74: NA | P74: NA | Q74: 0 | R74: 0 | S74: 0 | T74: 0 | U74: NA | V74: NA | W74: 0 | X74: 0 | Y74: 0 | Z74: 0 | AA74: 0 | AB74: 0 | AC74: 0 | AD74: 0 | AE74: 0 | AF74: 0 | AG74: 0
A75: QYG | B75: RXA | C75: CHESHIRE AND WIRRAL PARTNERSHIP NHS FOUNDATION TRUST | D75: 0 | E75: NA | F75: NA | G75: 0 | H75: 0 | I75: 0 | J75: 0 | K75: 0 | L75: 0 | M75: 0 | N75: 0 | O75: NA | P75: NA | Q75: 0 | R75: 0 | S75: 0 | T75: 0 | U75: NA | V75: NA | W75: 0 | X75: 0 | Y75: 0 | Z75: 0 | AA75: 0 | AB75: 0 | AC75: 0 | AD75: 0 | AE75: 0 | AF75: 0 | AG75: 0
A76: QYG | B76: RJN | C76: EAST CHESHIRE NHS TRUST | D76: 1 | E76: * | F76: * | G76: * | H76: * | I76: * | J76: * | K76: * | L76: * | M76: 1 | N76: 9 | O76: * | P76: * | Q76: * | R76: * | S76: * | T76: 1 | U76: * | V76: * | W76: * | X76: * | Y76: * | Z76: * | AA76: * | AB76: * | AC76: * | AD76: * | AE76: * | AF76: * | AG76: *
A77: QYG | B77: RW4 | C77: MERSEY CARE NHS FOUNDATION TRUST | D77: 35 | E77: 1 | F77: 0 | G77: 33 | H77: 2 | I77: 0 | J77: 0 | K77: 0 | L77: 0 | M77: 0 | N77: 0 | O77: NA | P77: NA | Q77: 0 | R77: 0 | S77: 0 | T77: 0 | U77: NA | V77: NA | W77: 0 | X77: 0 | Y77: 0 | Z77: 0 | AA77: 0 | AB77: 0 | AC77: 2 | AD77: 0 | AE77: 0 | AF77: 33 | AG77: 0
A78: QYG | B78: RBT | C78: MID CHESHIRE HOSPITALS NHS FOUNDATION TRUST | D78: 4 | E78: * | F78: * | G78: * | H78: * | I78: * | J78: * | K78: * | L78: * | M78: 4 | N78: 0 | O78: * | P78: * | Q78: * | R78: * | S78: * | T78: 4 | U78: * | V78: * | W78: * | X78: * | Y78: * | Z78: * | AA78: * | AB78: * | AC78: * | AD78: * | AE78: * | AF78: * | AG78: *

Sheet BS (hidden)
B1: Sort | C1: Region (LO) Code | D1: Region (LO) name | E1: Trust code | F1: Trust name | G1: Site Code | H1: Site Name | J1: Sort Lists: | K1: Sort range… | L1: Sort range… | M1: Sort range… | N1: Reference Region List: | O1: Code… | P1: Name… | Q1: Linked Region List: | R1: Code… | S1: Name… | T1: Reference Lists: | U1: Code… | V1: Code… | W1: Name… | X1: Code… | Y1: Name… | Z1: Trusts Linked Lists: | AA1: Code… | AB1: Name… | AC1: Sites Linked Lists: | AH1: CSV Headers
A2: Region (LO) | B2: 1 | C2: 1 | D2: 1 | E2: - | F2: - | G2: - | H2: - | K2: ICB Code | L2: ICB Code | M2: ICB Code | O2: QE1 | P2: LANCASHIRE AND SOUTH CUMBRIA ICB | R2: QE1 | S2: LANCASHIRE AND SOUTH CUMBRIA ICB | U2: QE1 | V2: RW5 | W2: LANCASHIRE & SOUTH CUMBRIA NHS FOUNDATION TRUST | AA2: AXG | AB2: AIREDALE NHS FOUNDATION TRUST | AH2: Breakdown | AI2: ICB Code | AJ2: Trust Code | AK2: Trust Name | AL2: Q1 - Total Responses | AM2: Q1 - Percentage Positive | AN2: Q1 - Percentage Negative | AO2: Q1 - Very Good | AP2: Q1 - Good | AQ2: Q1 - Neither Good nor Poor | AR2: Q1 - Poor | AS2: Q1 - Very Poor | AT2: Q1 - Don't Know | AU2: Q2 - Total Responses | AV2: Q2 - Total Eligible | AW2: Q2 - Percentage Positive | AX2: Q2 - Percentage Negative | AY2: Q2 - Yes definitely | AZ2: Q2 - Yes to some extent | BA2: Q2 - No | BB2: Q3 - Total Responses | BC2: Q3 - Percentage Positive | BD2: Q3 - Percentage Negative | BE2: Q3 - Yes definitely | BF2: Q3 - Yes to some extent | BG2: Q3 - No
A3: Trusts | B3: 1 | C3: 1 | D3: 1 | E3: 1 | F3: 1 | G3: - | H3: - | K3: ICB Name | L3: Organisation Code | M3: Trust Code | O3: QF7 | P3: SOUTH YORKSHIRE ICB | R3: QF7 | S3: SOUTH YORKSHIRE ICB | U3: QF7 | V3: RXE | W3: ROTHERHAM DONCASTER AND SOUTH HUMBER NHS FOUNDATION TRUST | AA3: NDJ | AB3: BIRMINGHAM COMMUNITY HEALTHCARE NHS FOUNDATION TRUST
A4: Site | B4: 1 | C4: 1 | D4: 1 | E4: 1 | F4: 1 | G4: 1 | H4: 1 | K4: Total Responses - Q1 | L4: Organisation Name | M4: Trust Name | O4: QGH | P4: HEREFORDSHIRE AND WORCESTERSHIRE ICB | R4: QGH | S4: HEREFORDSHIRE AND WORCESTERSHIRE ICB | U4: QF7 | V4: RHQ | W4: SHEFFIELD TEACHING HOSPITALS NHS FOUNDATION TRUST | AA4: NNF | AB4: BOLTON NHS FOUNDATION TRUST | AH4: Collection Mode | AI4: ICB Code | AJ4: Trust Code | AK4: Trust Name | AL4: SMS | AM4: Smartphone | AN4: Smartphone After | AO4: Paper | AP4: Paper After | AQ4: Telephone | AR4: Online | AS4: Other
K5: Percentage Positive - Q1 | L5: Total Responses - Q1 | M5: Site Code | O5: QH8 | P5: MID AND SOUTH ESSEX ICB | R5: QH8 | S5: MID AND SOUTH ESSEX ICB | U5: QF7 | V5: RFR | W5: THE ROTHERHAM NHS FOUNDATION TRUST | AA5: NQA | AB5: BRADFORD TEACHING HOSPITALS NHS FOUNDATION TRUST
K6: Percentage Negative - Q1 | L6: Percentage Positive - Q1 | M6: Site Name | O6: QHG | P6: BEDFORDSHIRE, LUTON AND MILTON KEYNES ICB | R6: QHG | S6: BEDFORDSHIRE, LUTON AND MILTON KEYNES ICB | U6: QHG | V6: RD8 | W6: MILTON KEYNES UNIVERSITY HOSPITAL NHS FOUNDATION TRUST | AA6: NR3 | AB6: BUCKINGHAMSHIRE HEALTHCARE NHS TRUST
K7: Very Good - Q1 | L7: Percentage Negative - Q1 | M7: Total Responses | O7: QHL | P7: BIRMINGHAM AND SOLIHULL ICB | R7: QHL | S7: BIRMINGHAM AND SOLIHULL ICB | U7: QHL | V7: RYW | W7: BIRMINGHAM COMMUNITY HEALTHCARE NHS FOUNDATION TRUST | AA7: NR5 | AB7: CAMBRIDGE UNIVERSITY HOSPITALS NHS FOUNDATION TRUST
K8: Good - Q1 | L8: Very Good - Q1 | M8: Total Eligible | O8: QHM | P8: NORTH EAST AND NORTH CUMBRIA ICB | R8: QHM | S8: NORTH EAST AND NORTH CUMBRIA ICB | U8: QHM | V8: RXP | W8: COUNTY DURHAM AND DARLINGTON NHS FOUNDATION TRUST | AA8: R0A | AB8: CAMBRIDGESHIRE AND PETERBOROUGH NHS FOUNDATION TRUST
K9: Neither Good nor Poor - Q1 | L9: Good - Q1 | M9: Percentage Positive | O9: QJ2 | P9: DERBY AND DERBYSHIRE ICB | R9: QJ2 | S9: DERBY AND DERBYSHIRE ICB | U9: QHM | V9: RR7 | W9: GATESHEAD HEALTH NHS FOUNDATION TRUST | AA9: R0B | AB9: CHESHIRE AND WIRRAL PARTNERSHIP NHS FOUNDATION TRUST
K10: Poor - Q1 | L10: Neither Good nor Poor - Q1 | M10: Percentage Negative | O10: QJG | P10: SUFFOLK AND NORTH EAST ESSEX ICB | R10: QJG | S10: SUFFOLK AND NORTH EAST ESSEX ICB | U10: QHM | V10: RNN | W10: NORTH CUMBRIA INTEGRATED CARE NHS FOUNDATION TRUST | AA10: R1C | AB10: CITY HEALTH CARE PARTNERSHIP CIC
K11: Very Poor - Q1 | L11: Poor - Q1 | M11: Very Good | O11: QJK | P11: DEVON ICB | R11: QJK | S11: DEVON ICB | U11: QHM | V11: RVW | W11: NORTH TEES AND HARTLEPOOL NHS FOUNDATION TRUST | AA11: R1D | AB11: COUNTY DURHAM AND DARLINGTON NHS FOUNDATION TRUST
K12: Don't Know - Q1 | L12: Very Poor - Q1 | M12: Good | O12: QJM | P12: LINCOLNSHIRE ICB | R12: QJM | S12: LINCOLNSHIRE ICB | U12: QHM | V12: RTF | W12: NORTHUMBRIA HEALTHCARE NHS FOUNDATION TRUST | AA12: R1F | AB12: DERBYSHIRE COMMUNITY HEALTH SERVICES NHS FOUNDATION TRUST
K13: Total Responses - Q2 | L13: Don't Know - Q1 | M13: Neither Good nor Poor | O13: QK1 | P13: LEICESTER, LEICESTERSHIRE AND RUTLAND ICB | R13: QK1 | S13: LEICESTER, LEICESTERSHIRE AND RUTLAND ICB | U13: QHM | V13: RTR | W13: SOUTH TEES HOSPITALS NHS FOUNDATION TRUST | AA13: R1K | AB13: DORSET HEALTHCARE UNIVERSITY NHS FOUNDATION TRUST
K14: Total Eligible - Q2 | L14: Total Responses - Q2 | M14: Poor | O14: QKK | P14: SOUTH EAST LONDON ICB | R14: QKK | S14: SOUTH EAST LONDON ICB | U14: QHM | V14: R0B | W14: SOUTH TYNESIDE AND SUNDERLAND NHS FOUNDATION TRUST | AA14: RA2 | AB14: EAST CHESHIRE NHS TRUST
K15: Percentage Positive - Q2 | L15: Total Eligible - Q2 | M15: Very Poor | O15: QKS | P15: KENT AND MEDWAY ICB | R15: QKS | S15: KENT AND MEDWAY ICB | U15: QHM | V15: RTD | W15: THE NEWCASTLE UPON TYNE HOSPITALS NHS FOUNDATION TRUST | AA15: RAE | AB15: EAST LONDON NHS FOUNDATION TRUST
K16: Percentage Negative - Q2 | L16: Percentage Positive - Q2 | M16: Don't Know | O16: QM7 | P16: HERTFORDSHIRE AND WEST ESSEX ICB | R16: QM7 | S16: HERTFORDSHIRE AND WEST ESSEX ICB | U16: QJ2 | V16: RY8 | W16: DERBYSHIRE COMMUNITY HEALTH SERVICES NHS FOUNDATION TRUST | AA16: RBK | AB16: EAST SUSSEX HEALTHCARE NHS TRUST
K17: Yes definitely - Q2 | L17: Percentage Negative - Q2 | O17: QMF | P17: NORTH EAST LONDON ICB | R17: QMF | S17: NORTH EAST LONDON ICB | U17: QJG | V17: NQA | W17: PROVIDE | AA17: RBT | AB17: EPSOM AND ST HELIER UNIVERSITY HOSPITALS NHS TRUST
K18: Yes to some extent - Q2 | L18: Yes definitely - Q2 | O18: QMJ | P18: NORTH CENTRAL LONDON ICB | R18: QMJ | S18: NORTH CENTRAL LONDON ICB | U18: QJK | V18: NR5 | W18: LIVEWELL SOUTHWEST | AA18: RCB | AB18: FIRST COMMUNITY HEALTH AND CARE CIC
K19: No - Q2 | L19: Yes to some extent - Q2 | O19: QMM | P19: NORFOLK AND WAVENEY ICB | R19: QMM | S19: NORFOLK AND WAVENEY ICB | U19: QJM | V19: RY5 | W19: LINCOLNSHIRE COMMUNITY HEALTH SERVICES NHS TRUST | AA19: RCF | AB19: GATESHEAD HEALTH NHS FOUNDATION TRUST
K20: Total Responses - Q3 | L20: No - Q2 | O20: QNC | P20: STAFFORDSHIRE AND STOKE-ON-TRENT ICB | R20: QNC | S20: STAFFORDSHIRE AND STOKE-ON-TRENT ICB | U20: QK1 | V20: RWE | W20: UNIVERSITY HOSPITALS OF LEICESTER NHS TRUST | AA20: RD8 | AB20: GEORGE ELIOT HOSPITAL NHS TRUST
K21: Percentage Positive - Q3 | L21: Total Responses - Q3 | O21: QNQ | P21: FRIMLEY ICB | R21: QNQ | S21: FRIMLEY ICB | U21: QKK | V21: RJ1 | W21: GUY'S AND ST THOMAS' NHS FOUNDATION TRUST | AA21: RDR | AB21: GLOUCESTERSHIRE HEALTH AND CARE NHS FOUNDATION TRUST
K22: Percentage Negative - Q3 | L22: Percentage Positive - Q3 | O22: QNX | P22: SUSSEX ICB | R22: QNX | S22: SUSSEX ICB | U22: QKK | V22: RJZ | W22: KING'S COLLEGE HOSPITAL NHS FOUNDATION TRUST | AA22: RDY | AB22: GUY'S AND ST THOMAS' NHS FOUNDATION TRUST
K23: Yes definitely - Q3 | L23: Percentage Negative - Q3 | O23: QOC | P23: SHROPSHIRE, TELFORD AND WREKIN ICB | R23: QOC | S23: SHROPSHIRE, TELFORD AND WREKIN ICB | U23: QM7 | V23: RY4 | W23: HERTFORDSHIRE COMMUNITY NHS TRUST | AA23: REF | AB23: HERTFORDSHIRE COMMUNITY NHS TRUST
K24: Yes to some extent - Q3 | L24: Yes definitely - Q3 | O24: QOP | P24: GREATER MANCHESTER ICB | R24: QOP | S24: GREATER MANCHESTER ICB | U24: QMF | V24: RWK | W24: EAST LONDON NHS FOUNDATION TRUST | AA24: RFR | AB24: HOMERTON HEALTHCARE NHS FOUNDATION TRUST
K25: No - Q3 | L25: Yes to some extent - Q3 | O25: QOQ | P25: HUMBER AND NORTH YORKSHIRE ICB | R25: QOQ | S25: HUMBER AND NORTH YORKSHIRE ICB | U25: QMF | V25: RQX | W25: HOMERTON HEALTHCARE NHS FOUNDATION TRUST | AA25: RGT | AB25: IMPERIAL COLLEGE HEALTHCARE NHS TRUST
L26: No - Q3 | O26: QOX | P26: BATH AND NORTH EAST SOMERSET, SWINDON AND WILTSHIRE ICB | R26: QOX | S26: BATH AND NORTH EAST SOMERSET, SWINDON AND WILTSHIRE ICB | U26: QMF | V26: Y05455 | W26: NELFT OOH | AA26: RHQ | AB26: ISLE OF WIGHT NHS TRUST
L27: SMS - Q1 | O27: QPM | P27: NORTHAMPTONSHIRE ICB | R27: QPM | S27: NORTHAMPTONSHIRE ICB | U27: QMJ | V27: RRV | W27: UNIVERSITY COLLEGE LONDON HOSPITALS NHS FOUNDATION TRUST | AA27: RJ1 | AB27: KING'S COLLEGE HOSPITAL NHS FOUNDATION TRUST
L28: Smartphone - Q1 | O28: QR1 | P28: GLOUCESTERSHIRE ICB | R28: QR1 | S28: GLOUCESTERSHIRE ICB | U28: QMM | V28: RY3 | W28: NORFOLK COMMUNITY HEALTH AND CARE NHS TRUST | AA28: RJ7 | AB28: LANCASHIRE & SOUTH CUMBRIA NHS FOUNDATION TRUST
L29: Smartphone After - Q1 | O29: QRL | P29: HAMPSHIRE AND ISLE OF WIGHT ICB | R29: QRL | S29: HAMPSHIRE AND ISLE OF WIGHT ICB | U29: QNC | V29: RRE | W29: MIDLANDS PARTNERSHIP NHS FOUNDATION TRUST | AA29: RJC | AB29: LEEDS COMMUNITY HEALTHCARE NHS TRUST
L30: Paper - Q1 | O30: QRV | P30: NORTH WEST LONDON ICB | R30: QRV | S30: NORTH WEST LONDON ICB | U30: QNX | V30: RXC | W30: EAST SUSSEX HEALTHCARE NHS TRUST | AA30: RJL | AB30: LINCOLNSHIRE COMMUNITY HEALTH SERVICES NHS TRUST
L31: Paper After - Q1 | O31: QSL | P31: SOMERSET ICB | R31: QSL | S31: SOMERSET ICB | U31: QNX | V31: RDR | W31: SUSSEX COMMUNITY NHS FOUNDATION TRUST | AA31: RJN | AB31: LIVEWELL SOUTHWEST
L32: Telephone - Q1 | O32: QT1 | P32: NOTTINGHAM AND NOTTINGHAMSHIRE ICB | R32: QT1 | S32: NOTTINGHAM AND NOTTINGHAMSHIRE ICB | U32: QOC | V32: R1D | W32: SHROPSHIRE COMMUNITY HEALTH NHS TRUST | AA32: RJZ | AB32: LONDON NORTH WEST UNIVERSITY HEALTHCARE NHS TRUST
L33: Online - Q1 | O33: QT6 | P33: CORNWALL AND THE ISLES OF SCILLY ICB | R33: QT6 | S33: CORNWALL AND THE ISLES OF SCILLY ICB | U33: QOP | V33: RMC | W33: BOLTON NHS FOUNDATION TRUST | AA33: RKB | AB33: MANCHESTER UNIVERSITY NHS FOUNDATION TRUST
L34: Other - Q1 | O34: QU9 | P34: BUCKINGHAMSHIRE, OXFORDSHIRE AND BERKSHIRE WEST ICB | R34: QU9 | S34: BUCKINGHAMSHIRE, OXFORDSHIRE AND BERKSHIRE WEST ICB | U34: QOP | V34: R0A | W34: MANCHESTER UNIVERSITY NHS FOUNDATION TRUST | AA34: RL4 | AB34: MERSEY CARE NHS FOUNDATION TRUST
L35: SMS - Q2 | O35: QUA | P35: BLACK COUNTRY ICB | R35: QUA | S35: BLACK COUNTRY ICB | U35: QOP | V35: RM3 | W35: NORTHERN CARE ALLIANCE NHS FOUNDATION TRUST | AA35: RLT | AB35: MID CHESHIRE HOSPITALS NHS FOUNDATION TRUST
L36: Smartphone - Q2 | O36: QUE | P36: CAMBRIDGESHIRE AND PETERBOROUGH ICB | R36: QUE | S36: CAMBRIDGESHIRE AND PETERBOROUGH ICB | U36: QOP | V36: RMP | W36: TAMESIDE AND GLOSSOP INTEGRATED CARE NHS FOUNDATION TRUST | AA36: RM3 | AB36: MID YORKSHIRE TEACHING NHS TRUST
L37: Smartphone After - Q2 | O37: QUY | P37: BRISTOL, NORTH SOMERSET AND SOUTH GLOUCESTERSHIRE ICB | R37: QUY | S37: BRISTOL, NORTH SOMERSET AND SOUTH GLOUCESTERSHIRE ICB | U37: QOP | V37: RRF | W37: WRIGHTINGTON, WIGAN AND LEIGH NHS FOUNDATION TRUST | AA37: RMC | AB37: MIDLANDS PARTNERSHIP NHS FOUNDATION TRUST
L38: Paper - Q2 | O38: QVV | P38: DORSET ICB | R38: QVV | S38: DORSET ICB | U38: QOQ | V38: NNF | W38: CITY HEALTH CARE PARTNERSHIP CIC | AA38: RMP | AB38: MILTON KEYNES UNIVERSITY HOSPITAL NHS FOUNDATION TRUST
L39: Paper After - Q2 | O39: QWE | P39: SOUTH WEST LONDON ICB | R39: QWE | S39: SOUTH WEST LONDON ICB | U39: QOQ | V39: RJL | W39: NORTHERN LINCOLNSHIRE AND GOOLE NHS FOUNDATION TRUST | AA39: RNN | AB39: NELFT OOH
L40: Telephone - Q2 | O40: QWO | P40: WEST YORKSHIRE ICB | R40: QWO | S40: WEST YORKSHIRE ICB | U40: QOQ | V40: RCB | W40: YORK AND SCARBOROUGH TEACHING HOSPITALS NHS FOUNDATION TRUST | AA40: RP1 | AB40: NORFOLK COMMUNITY HEALTH AND CARE NHS TRUST
L41: Online - Q2 | O41: QWU | P41: COVENTRY AND WARWICKSHIRE ICB | R41: QWU | S41: COVENTRY AND WARWICKSHIRE ICB | U41: QOX | V41: AXG | W41: WILTSHIRE HEALTH & CARE | AA41: RQX | AB41: NORTH CUMBRIA INTEGRATED CARE NHS FOUNDATION TRUST
L42: Other - Q2 | O42: QXU | P42: SURREY HEARTLANDS ICB | R42: QXU | S42: SURREY HEARTLANDS ICB | U42: QPM | V42: RP1 | W42: NORTHAMPTONSHIRE HEALTHCARE NHS FOUNDATION TRUST | AA42: RR7 | AB42: NORTH TEES AND HARTLEPOOL NHS FOUNDATION TRUST
L43: SMS - Q3 | O43: QYG | P43: CHESHIRE AND MERSEYSIDE ICB | R43: QYG | S43: CHESHIRE AND MERSEYSIDE ICB | U43: QR1 | V43: RTQ | W43: GLOUCESTERSHIRE HEALTH AND CARE NHS FOUNDATION TRUST | AA43: RRE | AB43: NORTHAMPTONSHIRE HEALTHCARE NHS FOUNDATION TRUST
L44: Smartphone - Q3 | U44: QRL | V44: R1F | W44: ISLE OF WIGHT NHS TRUST | AA44: RRF | AB44: NORTHERN CARE ALLIANCE NHS FOUNDATION TRUST
L45: Smartphone After - Q3 | U45: QRL | V45: R1C | W45: SOLENT NHS TRUST | AA45: RRV | AB45: NORTHERN LINCOLNSHIRE AND GOOLE NHS FOUNDATION TRUST
L46: Paper - Q3 | U46: QRL | V46: RW1 | W46: SOUTHERN HEALTH NHS FOUNDATION TRUST | AA46: RT1 | AB46: NORTHUMBRIA HEALTHCARE NHS FOUNDATION TRUST
L47: Paper After - Q3 | U47: QRV | V47: RYJ | W47: IMPERIAL COLLEGE HEALTHCARE NHS TRUST | AA47: RTD | AB47: NOTTINGHAM CITYCARE PARTNERSHIP
L48: Telephone - Q3 | U48: QRV | V48: R1K | W48: LONDON NORTH WEST UNIVERSITY HEALTHCARE NHS TRUST | AA48: RTF | AB48: OXFORD UNIVERSITY HOSPITALS NHS FOUNDATION TRUST
L49: Online - Q3 | U49: QT1 | V49: NR3 | W49: NOTTINGHAM CITYCARE PARTNERSHIP | AA49: RTH | AB49: PROVIDE
L50: Other - Q3 | U50: QT6 | V50: REF | W50: ROYAL CORNWALL HOSPITALS NHS TRUST | AA50: RTQ | AB50: ROTHERHAM DONCASTER AND SOUTH HUMBER NHS FOUNDATION TRUST
U51: QU9 | V51: RXQ | W51: BUCKINGHAMSHIRE HEALTHCARE NHS TRUST | AA51: RTR | AB51: ROYAL CORNWALL HOSPITALS NHS TRUST
U52: QU9 | V52: RTH | W52: OXFORD UNIVERSITY HOSPITALS NHS FOUNDATION TRUST | AA52: RVR | AB52: ROYAL SURREY COUNTY HOSPITAL NHS FOUNDATION TRUST
U53: QUA | V53: RL4 | W53: THE ROYAL WOLVERHAMPTON NHS TRUST | AA53: RVW | AB53: SHEFFIELD TEACHING HOSPITALS NHS FOUNDATION TRUST
U54: QUA | V54: RBK | W54: WALSALL HEALTHCARE NHS TRUST | AA54: RW1 | AB54: SHROPSHIRE COMMUNITY HEALTH NHS TRUST
U55: QUE | V55: RGT | W55: CAMBRIDGE UNIVERSITY HOSPITALS NHS FOUNDATION TRUST | AA55: RW4 | AB55: SOLENT NHS TRUST
U56: QUE | V56: RT1 | W56: CAMBRIDGESHIRE AND PETERBOROUGH NHS FOUNDATION TRUST | AA56: RW5 | AB56: SOUTH TEES HOSPITALS NHS FOUNDATION TRUST
U57: QVV | V57: RDY | W57: DORSET HEALTHCARE UNIVERSITY NHS FOUNDATION TRUST | AA57: RWE | AB57: SOUTH TYNESIDE AND SUNDERLAND NHS FOUNDATION TRUST
U58: QWE | V58: RVR | W58: EPSOM AND ST HELIER UNIVERSITY HOSPITALS NHS TRUST | AA58: RWK | AB58: SOUTH WARWICKSHIRE UNIVERSITY NHS FOUNDATION TRUST
U59: QWE | V59: RJ7 | W59: ST GEORGE'S UNIVERSITY HOSPITALS NHS FOUNDATION TRUST | AA59: RXA | AB59: SOUTHERN HEALTH NHS FOUNDATION TRUST
U60: QWO | V60: RCF | W60: AIREDALE NHS FOUNDATION TRUST | AA60: RXC | AB60: ST GEORGE'S UNIVERSITY HOSPITALS NHS FOUNDATION TRUST
U61: QWO | V61: RAE | W61: BRADFORD TEACHING HOSPITALS NHS FOUNDATION TRUST | AA61: RXE | AB61: SUSSEX COMMUNITY NHS FOUNDATION TRUST
U62: QWO | V62: RY6 | W62: LEEDS COMMUNITY HEALTHCARE NHS TRUST | AA62: RXF | AB62: TAMESIDE AND GLOSSOP INTEGRATED CARE NHS FOUNDATION TRUST
U63: QWO | V63: RXF | W63: MID YORKSHIRE TEACHING NHS TRUST | AA63: RXP | AB63: THE NEWCASTLE UPON TYNE HOSPITALS NHS FOUNDATION TRUST
U64: QWU | V64: RLT | W64: GEORGE ELIOT HOSPITAL NHS TRUST | AA64: RXQ | AB64: THE ROTHERHAM NHS FOUNDATION TRUST
U65: QWU | V65: RJC | W65: SOUTH WARWICKSHIRE UNIVERSITY NHS FOUNDATION TRUST | AA65: RY3 | AB65: THE ROYAL WOLVERHAMPTON NHS TRUST
U66: QWU | V66: RKB | W66: UNIVERSITY HOSPITALS COVENTRY AND WARWICKSHIRE NHS TRUST | AA66: RY4 | AB66: UNIVERSITY COLLEGE LONDON HOSPITALS NHS FOUNDATION TRUST
U67: QXU | V67: NDJ | W67: FIRST COMMUNITY HEALTH AND CARE CIC | AA67: RY5 | AB67: UNIVERSITY HOSPITALS COVENTRY AND WARWICKSHIRE NHS TRUST
U68: QXU | V68: RA2 | W68: ROYAL SURREY COUNTY HOSPITAL NHS FOUNDATION TRUST | AA68: RY6 | AB68: UNIVERSITY HOSPITALS OF LEICESTER NHS TRUST
U69: QYG | V69: RXA | W69: CHESHIRE AND WIRRAL PARTNERSHIP NHS FOUNDATION TRUST | AA69: RY8 | AB69: WALSALL HEALTHCARE NHS TRUST
U70: QYG | V70: RJN | W70: EAST CHESHIRE NHS TRUST | AA70: RYJ | AB70: WILTSHIRE HEALTH & CARE
U71: QYG | V71: RW4 | W71: MERSEY CARE NHS FOUNDATION TRUST | AA71: RYW | AB71: WRIGHTINGTON, WIGAN AND LEIGH NHS FOUNDATION TRUST
U72: QYG | V72: RBT | W72: MID CHESHIRE HOSPITALS NHS FOUNDATION TRUST | AA72: Y05455 | AB72: YORK AND SCARBOROUGH TEACHING HOSPITALS NHS FOUNDATION TRUST
